bitfinex/quotes_ETHUSD_20220310
["timestamp","ask_amount","ask_price","bid_price","bid_amount"]
[1646870401220,0.753759,2730.0,2729.6,0.24126905]
[1646870401706,0.91643,2729.9,2729.6,0.24126905]
[1646870401908,1.44343,2729.9,2729.6,0.24126905]
[1646870402357,0.526759,2730.0,2729.7,0.029168]
[1646870402556,0.526759,2730.0,2729.8,0.029168]
[1646870402759,0.3,2730.2,2729.8,0.029168]
[1646870403156,1.5163,2730.3,2729.7,0.029168]
[1646870403456,0.91634,2730.2,2730.0,0.08400227]
[1646870403656,0.91634,2730.2,2729.7,0.029168]
[1646870404057,0.91634,2730.2,2729.9,0.00372416]
[1646870404869,0.91634,2730.2,2730.0,0.08400227]
[1646870405261,1.8327184,2730.2,2730.0,0.08400227]
[1646870405661,2.1327184,2730.2,2729.9,0.03289213]
[1646870405896,2.1327184,2730.2,2729.9,0.00372413]
[1646870406097,2.1327184,2730.2,2729.8,0.029168]
[1646870406298,2.4327184,2730.2,2729.9,0.00171111]
[1646870406500,0.01614708,2730.1,2730.0,0.08400227]
[1646870406698,0.01614708,2730.1,2729.9,0.00171111]
[1646870406903,2.4327184,2730.2,2730.1,0.03229416]
[1646870408101,1.8327184,2730.2,2730.1,0.06146216]
[1646870408299,0.91624,2730.4,2730.1,0.06146216]
[1646870408499,0.91624,2730.4,2730.3,0.029168]
[1646870408703,0.91624,2730.4,2730.1,0.06146216]
[1646870409105,0.91624,2730.4,2730.2,17.71555146]
[1646870409550,0.91624,2730.4,2730.3,0.08400227]
[1646870411761,1.21624,2730.4,2730.3,0.08400227]
[1646870412156,0.91624,2730.4,2730.3,0.08400227]
[1646870412357,1.0,2730.5,2730.3,0.11317027]
[1646870412756,0.3,2730.6,2730.4,0.08400227]
[1646870412957,1.8324,2730.9,2730.4,0.08400227]
[1646870413156,0.98181004,2730.6,2730.2,17.74832313]
[1646870413401,2.7491182,2730.5,2730.3,1.52178932]
[1646870413601,3.0491182,2730.5,2730.4,0.00360358]
[1646870413799,4.0491182,2730.5,2730.4,0.00360358]
[1646870414405,4.0491182,2730.5,2730.4,17.80315731]
[1646870414607,4.0491182,2730.5,2730.4,17.79955373]
[1646870415410,4.0491182,2730.5,2730.4,19.32132922]
[1646870416210,2.21625,2730.5,2730.4,17.79955373]
[1646870416408,2.21625,2730.5,2730.4,19.32132965]
[1646870416610,1.21625,2730.5,2730.4,19.32132965]
[1646870417052,0.91625,2730.5,2730.4,19.32132965]
[1646870417452,1.83235,2731.0,2730.5,3.4162]
[1646870417653,0.0034963,2731.7,2730.9,0.029168]
[1646870417854,0.0034963,2731.7,2731.5,0.029168]
[1646870418062,2.11198,2731.8,2731.5,0.029168]
[1646870418063,1.83176,2731.8,2731.5,0.810768]
[1646870418356,1.47072059,2731.9,2731.5,0.810768]
[1646870418556,0.00202034,2731.7,2731.5,0.839936]
[1646870418758,0.00202034,2731.7,2731.5,0.810768]
[1646870418972,0.00202034,2731.7,2731.6,0.058336]
[1646870419355,5.44151,2732.4,2731.6,0.058336]
[1646870419356,3.61,2732.4,2731.6,0.058336]
[1646870419560,1.1642,2732.4,2732.0,0.029168]
[1646870419757,1.1642,2732.4,2732.2,8.85777573]
[1646870419957,2.4504,2732.5,2732.2,9.60107573]
[1646870420259,1.05013201,2732.6,2732.2,9.60107573]
[1646870420904,0.9156,2732.4,2732.2,9.60107573]
[1646870421102,1.83482609,2732.5,2732.2,9.60107573]
[1646870421103,0.00350609,2732.5,2732.2,9.63024373]
[1646870421501,0.00350609,2732.5,2732.4,0.058336]
[1646870421901,12.0024,2733.2,2732.4,1.10773738]
[1646870422110,1.83082,2733.3,2732.9,0.029168]
[1646870422402,1.83082,2733.3,2732.9,1.214836]
[1646870422800,1.83082,2733.3,2732.9,1.185668]
[1646870423199,0.00350503,2733.2,2732.9,1.185668]
[1646870423400,1.78432503,2733.3,2732.9,1.185668]
[1646870424003,0.91531,2733.4,2733.1,0.08400227]
[1646870424206,0.91531,2733.4,2733.0,0.058336]
[1646870424672,1.21531,2733.4,2733.0,0.029168]
[1646870425058,1.21531,2733.4,2733.2,17.71555146]
[1646870425662,1.21531,2733.4,2733.3,0.08400227]
[1646870427366,3.4,2733.3,2733.2,12.12289505]
[1646870427605,3.927,2733.3,2733.2,12.12289505]
[1646870427765,1.827,2733.3,2733.2,6.62908505]
[1646870428165,0.827,2733.3,2733.2,6.62908505]
[1646870428405,1.8311729,2733.0,2732.3,0.1829]
[1646870428654,1.8311729,2733.0,2732.2,0.1829]
[1646870428655,0.527,2732.9,2732.2,0.1829]
[1646870428805,0.827,2732.9,2732.2,0.1829]
[1646870429003,0.827,2732.9,2732.1,0.212068]
[1646870429607,0.9156518,2732.8,2732.1,0.212068]
[1646870429811,1.4426518,2732.8,2732.1,0.212068]
[1646870430010,1.7426518,2732.8,2732.1,0.212068]
[1646870430213,2.0426518,2732.8,2732.2,0.029168]
[1646870430408,0.91566,2732.7,2732.2,0.058336]
[1646870431022,0.9158008,2732.4,2732.0,0.029168]
[1646870431210,0.9158008,2732.4,2731.6,0.1829]
[1646870431211,0.527,2732.3,2731.6,0.1829]
[1646870431412,4.027,2732.3,2731.6,0.1829]
[1646870431609,0.527,2732.3,2731.6,0.1829]
[1646870431863,0.527,2732.3,2731.5,0.03289658]
[1646870432050,1.8316818,2732.2,2731.5,0.00372858]
[1646870432250,0.527,2732.1,2731.6,0.029168]
[1646870432458,0.527,2732.1,2731.5,0.06206458]
[1646870432459,1.74282,2732.1,2731.5,0.06206458]
[1646870432654,1.74282,2732.1,2731.7,0.029168]
[1646870433052,1.74282,2732.1,2731.8,0.029168]
[1646870434253,2.9586169,2732.1,2731.9,0.029168]
[1646870434657,3.9586169,2732.1,2731.9,0.029168]
[1646870434961,3.04282,2732.1,2731.8,0.029168]
[1646870435358,1.74282,2732.1,2731.8,0.029168]
[1646870435557,2.74282,2732.1,2731.8,0.029168]
[1646870435828,1.74282,2732.1,2731.8,0.029168]
[1646870436013,2.74282,2732.1,2731.8,0.029168]
[1646870436215,1.74282,2732.1,2731.8,0.029168]
[1646870436416,2.74282,2732.1,2731.8,0.029168]
[1646870437619,1.74282,2732.1,2731.8,0.029168]
[1646870437815,2.74282,2732.1,2731.8,0.029168]
[1646870438017,1.44282,2732.1,2732.0,0.058336]
[1646870438417,0.91582,2732.1,2732.0,0.058336]
[1646870438820,0.91582,2732.1,2732.0,0.029168]
[1646870439425,1.3,2732.2,2732.0,0.029168]
[1646870439657,1.3,2732.2,2731.9,0.029168]
[1646870439857,2.1316662,2732.2,2731.9,0.029168]
[1646870440056,2.1316662,2732.2,2731.8,0.029168]
[1646870440057,0.9158255,2732.1,2731.8,0.029168]
[1646870440668,0.9158255,2732.1,2731.7,0.029168]
[1646870440857,2.1316455,2732.1,2731.6,0.029168]
[1646870441058,0.91579,2731.9,2731.5,0.029168]
[1646870441262,1.21579,2731.9,2731.7,0.029168]
[1646870441469,1.21579,2731.9,2731.5,0.00351118]
[1646870441470,2.6586914,2731.9,2731.5,0.00351118]
[1646870441858,3.6586914,2731.9,2731.5,0.00351118]
[1646870442059,2.6586914,2731.9,2731.5,0.00351118]
[1646870442258,3.6586914,2731.9,2731.3,0.029168]
[1646870442460,3.6586914,2731.9,2731.5,0.00350589]
[1646870442461,3.5746214,2731.9,2731.5,0.00350589]
[1646870442661,4.5746214,2731.9,2731.5,0.00350589]
[1646870442862,4.8746214,2731.9,2731.5,0.00350589]
[1646870443059,0.91591,2731.8,2731.5,0.00350589]
[1646870443321,0.91589,2731.6,2731.5,0.00350589]
[1646870443511,1.21589,2731.6,2731.4,0.029168]
[1646870443710,1.21589,2731.6,2731.5,0.00350586]
[1646870443912,0.3,2731.6,2731.5,0.00350586]
[1646870444314,0.827,2731.9,2731.5,0.00350586]
[1646870444547,0.827,2731.9,2731.5,0.03267386]
[1646870444715,0.827,2731.9,2731.5,0.029168]
[1646870444916,0.827,2731.9,2731.5,0.058336]
[1646870445215,1.74281,2731.9,2731.5,0.058336]
[1646870445615,1.74281,2731.9,2731.5,0.029168]
[1646870446016,1.74281,2731.9,2731.5,0.06184226]
[1646870446417,1.74281,2731.9,2731.5,0.03267426]
[1646870447065,1.74281,2731.9,2731.5,0.029168]
[1646870447264,1.74281,2731.9,2731.5,0.06184226]
[1646870448070,1.74281,2731.9,2731.6,0.029168]
[1646870448468,1.74281,2731.9,2731.8,0.029168]
[1646870448667,1.21581,2731.9,2731.8,0.029168]
[1646870448873,1.21581,2731.9,2731.7,0.029168]
[1646870449576,2.9852049,2732.3,2731.7,0.029168]
[1646870449577,0.13819997,2732.4,2732.1,1.02388151]
[1646870449773,6.0560489,2732.7,2732.1,1.05304951]
[1646870449774,4.2247,2732.7,2732.1,1.05304951]
[1646870449977,1.7679,2732.7,2732.1,1.05304951]
[1646870450374,0.527,2732.7,2732.1,1.05304951]
[1646870450579,0.527,2732.7,2732.1,1.02388151]
[1646870450809,0.827,2732.7,2732.1,1.05304951]
[1646870451201,0.9156,2732.5,2732.1,1.08221751]
[1646870451600,1.2156,2732.5,2732.1,1.08221751]
[1646870451801,1.2156,2732.5,2732.2,0.029168]
[1646870452400,1.2156,2732.5,2732.1,1.05304951]
[1646870453003,1.2156,2732.5,2732.1,1.0515441]
[1646870454658,2.1312541,2732.5,2732.1,1.0515441]
[1646870454855,2.4312541,2732.5,2732.1,1.0515441]
[1646870455257,1.8314,2732.4,2732.1,0.029168]
[1646870456056,1.8314,2732.4,2731.9,1.62231707]
[1646870456258,3.6629838,2732.4,2731.9,1.62231707]
[1646870456661,4.9629838,2732.4,2731.9,1.62231707]
[1646870459306,5.4899838,2732.4,2731.9,1.62231707]
[1646870459710,0.91568,2732.3,2731.9,1.65148507]
[1646870460109,1.21568,2732.3,2731.9,1.68065307]
[1646870460315,1.21568,2732.3,2732.1,0.96397855]
[1646870460316,0.3,2732.3,2732.1,0.96397855]
[1646870460710,0.3,2732.4,2732.1,0.99314655]
[1646870460917,0.3,2732.4,2732.2,0.029168]
[1646870461112,0.91558,2732.6,2732.3,0.029168]
[1646870461314,0.91558,2732.6,2732.5,0.029168]
[1646870461669,0.91558,2732.6,2732.3,0.029168]
[1646870461818,0.7654281,2732.6,2731.9,1.62231707]
[1646870462052,1.83155,2732.4,2732.1,0.029168]
[1646870462250,1.83155,2732.4,2732.1,0.058336]
[1646870462251,0.527,2732.3,2732.1,0.058336]
[1646870462449,0.527,2732.3,2732.1,0.029168]
[1646870462654,0.527,2732.3,2731.9,1.62231707]
[1646870462655,3.5,2732.2,2731.9,1.62231707]
[1646870462851,1.44284,2732.1,2731.9,1.62231707]
[1646870464253,1.097,2732.0,2731.9,1.62231707]
[1646870464453,1.624,2732.0,2731.9,1.62231707]
[1646870464659,5.424,2732.0,2731.9,1.62231707]
[1646870465059,2.924,2732.0,2731.9,1.62231707]
[1646870465258,1.924,2732.0,2731.9,1.62231707]
[1646870465460,2.924,2732.0,2731.9,1.62231707]
[1646870465944,1.924,2732.0,2731.9,1.62231707]
[1646870466106,2.924,2732.0,2731.9,1.62231707]
[1646870466302,1.924,2732.0,2731.9,1.62231707]
[1646870466501,2.924,2732.0,2731.9,1.62231707]
[1646870466704,1.924,2732.0,2731.9,1.62231707]
[1646870466904,2.924,2732.0,2731.9,1.62231707]
[1646870468106,1.924,2732.0,2731.9,1.65148507]
[1646870468307,2.924,2732.0,2731.9,1.62231707]
[1646870468506,1.924,2732.0,2731.9,1.62231707]
[1646870468709,2.924,2732.0,2731.9,1.62231707]
[1646870468906,1.924,2732.0,2731.9,1.62231707]
[1646870469117,2.924,2732.0,2731.9,1.62231707]
[1646870469304,1.924,2732.0,2731.9,1.62231707]
[1646870469561,2.924,2732.0,2731.9,1.62231707]
[1646870469764,1.397,2732.0,2731.9,1.62231707]
[1646870469963,2.397,2732.0,2731.9,1.62231707]
[1646870470361,1.397,2732.0,2731.9,1.62231707]
[1646870470564,1.397,2732.0,2731.9,1.73512252]
[1646870472301,2.01295,2731.8,2731.5,0.1829]
[1646870472467,2.01295,2731.8,2731.5,0.18618645]
[1646870472468,1.097,2731.6,2731.5,0.18618645]
[1646870472668,1.624,2731.6,2731.5,0.18618645]
[1646870472967,1.924,2731.6,2731.5,0.18618645]
[1646870473408,1.924,2731.6,2731.5,0.1829]
[1646870474309,1.924,2731.6,2731.4,0.00329012]
[1646870474310,5.41315,2731.5,2731.4,0.00329012]
[1646870474510,5.41315,2731.5,2730.6,0.00215507]
[1646870474511,1.097,2731.2,2730.6,0.00215507]
[1646870474712,1.097,2731.2,2730.6,1.5215579]
[1646870474713,1.097,2731.0,2730.6,1.5215579]
[1646870474914,0.05668547,2730.8,2730.7,1.5215579]
[1646870475214,0.05668547,2730.8,2730.3,1.2488]
[1646870475215,1.68068547,2730.8,2730.3,1.2488]
[1646870475516,1.68068547,2730.8,2730.4,1.5216457]
[1646870475517,1.15102822,2730.7,2730.4,1.5216457]
[1646870475716,1.15102822,2730.7,2730.5,1.5216457]
[1646870475717,1.67802822,2730.7,2730.5,1.5216457]
[1646870475914,1.67802822,2730.7,2730.1,0.03229416]
[1646870476116,0.05202319,2730.6,2730.2,1.52148675]
[1646870476316,0.05202319,2730.6,2729.8,0.07139778]
[1646870476317,1.097,2730.4,2729.8,0.07139778]
[1646870476532,1.097,2730.4,2729.6,0.24126905]
[1646870476533,1.097,2730.2,2729.6,0.24126905]
[1646870476714,4.027,2730.3,2729.6,0.24126905]
[1646870476715,1.097,2730.0,2729.6,0.24126905]
[1646870476914,1.624,2730.0,2729.6,0.24126905]
[1646870477156,1.15419396,2729.9,2729.6,0.24126905]
[1646870478355,1.097,2729.7,2729.6,0.24126905]
[1646870478555,0.91664,2729.8,2729.7,0.52642844]
[1646870478755,1.21664,2729.8,2729.7,0.52642844]
[1646870480359,1.21664,2729.8,2729.6,0.24477673]
[1646870480659,1.21664,2729.8,2729.6,0.24126905]
[1646870480660,0.0503313,2729.7,2729.6,0.24126905]
[1646870480906,0.0503313,2729.7,2729.6,0.24476917]
[1646870480907,0.5773313,2729.7,2729.6,0.24476917]
[1646870481506,0.5773313,2729.7,2729.4,1.46784903]
[1646870481711,0.05024552,2729.6,2729.4,1.46784903]
[1646870481908,2.80024642,2729.6,2729.5,0.1831]
[1646870482106,3.25842362,2729.6,2729.5,0.1831]
[1646870482310,4.25842362,2729.6,2729.5,0.1831]
[1646870482508,3.2081781,2729.6,2729.5,0.1831]
[1646870482707,4.2081781,2729.6,2729.5,0.1831]
[1646870482909,3.2081781,2729.6,2729.5,0.1831]
[1646870483106,4.2081781,2729.6,2729.4,1.65094903]
[1646870483309,4.2081781,2729.6,2729.4,1.65253713]
[1646870483943,4.2081781,2729.6,2729.4,1.46943713]
[1646870484314,4.0500009,2729.6,2729.4,1.46784903]
[1646870484562,1.2166709,2729.6,2729.4,1.54639677]
[1646870484998,0.9166709,2729.6,2729.4,1.54639677]
[1646870485365,0.9166709,2729.6,2729.4,1.47146529]
[1646870485666,0.9166709,2729.6,2729.4,1.46784903]
[1646870485864,0.9166709,2729.6,2729.4,1.47146529]
[1646870486065,1.2166709,2729.6,2729.4,1.47146529]
[1646870486668,1.2166709,2729.6,2729.4,1.46784903]
[1646870487089,1.2166709,2729.6,2729.4,1.47135197]
[1646870487671,1.2166709,2729.6,2729.4,0.00350294]
[1646870487870,2.18953217,2729.6,2729.1,0.1831]
[1646870488070,2.18953217,2729.6,2729.4,0.00350294]
[1646870489008,2.18953217,2729.6,2729.1,0.1831]
[1646870489253,2.18953217,2729.6,2728.9,0.1831]
[1646870489413,2.18953217,2729.6,2729.4,0.00350294]
[1646870490017,0.04647687,2729.5,2729.4,0.00350294]
[1646870490218,0.57347687,2729.5,2729.1,0.1831]
[1646870490417,0.57347687,2729.5,2728.9,0.1831]
[1646870490418,1.8336,2729.4,2728.9,0.1831]
[1646870490618,0.527,2729.3,2729.0,0.01404448]
[1646870490817,0.827,2729.3,2729.0,0.01404448]
[1646870491421,0.827,2729.3,2728.7,1.10013823]
[1646870491619,0.827,2729.3,2728.8,0.1832]
[1646870491823,1.8335777,2729.1,2729.0,0.00351078]
[1646870492055,2.1335777,2729.1,2729.0,0.00351078]
[1646870492652,0.3,2729.0,2728.8,0.1832]
[1646870493052,0.3,2729.0,2728.9,0.00351084]
[1646870493854,0.3,2729.0,2728.8,0.1832]
[1646870494054,0.3,2729.0,2728.8,0.18671038]
[1646870495059,0.3,2729.0,2728.8,0.1832]
[1646870495261,0.54032899,2729.0,2728.8,0.18671041]
[1646870495460,0.3,2729.0,2728.8,0.18671041]
[1646870495923,0.58276813,2728.9,2728.8,0.18671041]
[1646870496118,0.88276813,2728.9,2728.8,0.18671041]
[1646870496315,0.8857499,2728.9,2728.8,0.1832]
[1646870498617,3.21258718,2729.0,2728.8,0.1832]
[1646870498866,0.52791998,2728.9,2728.8,0.1832]
[1646870500067,0.82791998,2728.9,2728.8,0.1832]
[1646870500865,0.82791998,2728.9,2728.8,0.1332]
[1646870503904,0.827,2728.9,2728.8,0.1332]
[1646870504707,0.856168,2728.9,2728.8,0.1332]
[1646870505607,0.89805444,2728.9,2728.8,0.1332]
[1646870506206,0.89805444,2728.9,2728.7,0.00350827]
[1646870506406,3.64879914,2728.9,2728.7,0.00350827]
[1646870506806,4.64879914,2728.9,2728.7,0.00350827]
[1646870507059,0.91691,2728.8,2728.7,0.00350827]
[1646870507259,0.91691,2728.8,2728.4,1.52231535]
[1646870507260,1.44391,2728.8,2728.4,1.52231535]
[1646870507460,1.44391,2728.8,2728.7,0.0035083]
[1646870508563,4.1953458,2728.8,2728.4,1.52233068]
[1646870508761,0.029168,2728.6,2727.9,0.07120684]
[1646870508963,1.8343395,2728.4,2728.0,1.52243968]
[1646870509162,0.527,2728.3,2728.0,1.52243968]
[1646870511803,1.10648598,2728.3,2728.0,1.52243968]
[1646870512004,1.10648598,2728.3,2728.0,1.47243968]
[1646870512005,1.07731798,2728.3,2728.0,1.47243968]
[1646870512405,1.07731798,2728.3,2728.0,1.47616781]
[1646870512806,1.07731798,2728.3,2728.0,1.42616781]
[1646870513211,1.07731798,2728.3,2728.0,1.42243968]
[1646870513406,1.07731798,2728.3,2728.0,1.37616781]
[1646870513607,1.07731798,2728.3,2728.0,0.00372813]
[1646870514009,1.07823796,2728.3,2728.0,0.00372813]
[1646870514555,1.07823796,2728.3,2727.9,0.07120684]
[1646870514757,1.07823796,2728.3,2728.0,0.00372813]
[1646870515558,1.07823796,2728.3,2727.7,0.08424774]
[1646870515762,2.7514301,2728.2,2727.7,0.08424774]
[1646870515958,3.2784301,2728.2,2728.0,0.00372813]
[1646870516158,4.5784301,2728.2,2728.0,0.00372813]
[1646870516858,4.5784301,2728.2,2727.8,0.07298834]
[1646870517058,0.91714,2728.1,2728.0,0.00361632]
[1646870517458,0.946308,2728.1,2728.0,0.00361632]
[1646870517662,1.473308,2728.1,2728.0,0.00361632]
[1646870518058,1.473308,2728.1,2727.6,7.32]
[1646870518503,3.90055513,2728.2,2727.6,7.32]
[1646870518710,0.556168,2728.1,2727.6,7.32]
[1646870519505,1.473308,2728.1,2727.6,7.32]
[1646870520815,1.473308,2728.1,2727.7,0.00372594]
[1646870521713,4.225011,2728.1,2727.6,7.32]
[1646870521913,4.225011,2728.1,2727.8,0.00372591]
[1646870522190,5.225011,2728.1,2727.8,0.00372591]
[1646870522759,5.225011,2728.1,2727.6,7.32]
[1646870523159,5.225011,2728.1,2727.8,0.00372588]
[1646870523760,0.1832,2728.0,2727.6,7.27372588]
[1646870523959,0.9171676,2727.8,2727.5,0.08267281]
[1646870524160,1.10037,2727.7,2727.5,0.08267281]
[1646870524360,1.40037,2727.7,2727.5,0.08267281]
[1646870524778,1.40037,2727.7,2727.4,0.01490576]
[1646870524779,0.556168,2727.6,2727.4,0.01490576]
[1646870524965,0.1832,2727.5,2727.4,0.01490576]
[1646870525165,0.7102,2727.5,2727.4,0.01490576]
[1646870525382,0.7102,2727.5,2726.9,0.08909289]
[1646870525564,0.029168,2727.0,2726.9,0.08909289]
[1646870525831,0.029168,2727.0,2726.6,1.84100302]
[1646870525832,2.531448,2727.0,2726.6,1.84100302]
[1646870526016,0.029168,2726.7,2726.5,0.67747359]
[1646870526213,0.029168,2726.7,2726.4,0.0069632]
[1646870526214,0.1832,2726.6,2726.4,0.0069632]
[1646870526426,0.556168,2726.5,2726.4,0.0069632]
[1646870526614,0.739368,2726.5,2726.4,0.0069632]
[1646870526815,1.039368,2726.5,2726.4,0.0069632]
[1646870527015,1.039368,2726.5,2726.4,0.05016338]
[1646870528219,2.05518436,2726.4,2726.2,0.07662712]
[1646870528419,1.473978,2726.3,2726.2,0.09055352]
[1646870528820,2.3,2726.2,2726.1,0.0402768]
[1646870529019,2.827,2726.2,2726.1,0.0402768]
[1646870529221,3.127,2726.2,2726.1,0.0402768]
[1646870529420,4.127,2726.2,2726.1,0.02856262]
[1646870529671,1.827,2726.2,2726.1,0.02856262]
[1646870529868,1.827,2726.2,2725.8,0.5]
[1646870530069,2.7829873,2726.1,2725.8,0.5]
[1646870530271,2.6628129,2726.0,2725.8,0.5]
[1646870530472,2.6628129,2726.0,2725.7,0.0367598]
[1646870530473,0.029168,2725.9,2725.7,0.0367598]
[1646870530672,0.527,2725.8,2725.7,0.0367598]
[1646870530869,0.527,2725.8,2725.5,0.03052472]
[1646870531070,0.527,2725.8,2725.4,0.03398456]
[1646870531071,0.029168,2725.6,2725.4,0.03398456]
[1646870531277,0.527,2725.5,2725.4,0.03398456]
[1646870531471,0.827,2725.5,2725.4,0.03398456]
[1646870532472,0.827,2725.5,2725.3,0.00305408]
[1646870532871,1.7451155,2725.5,2725.3,0.00305408]
[1646870533171,0.029168,2725.4,2725.3,0.00305408]
[1646870533413,0.556168,2725.4,2725.3,0.00305408]
[1646870533814,1.474288,2725.4,2725.3,0.00305408]
[1646870534211,1.474288,2725.4,2725.3,1.52672243]
[1646870534616,1.44512,2725.4,2725.3,1.52672243]
[1646870535620,1.474288,2725.4,2725.3,1.52672243]
[1646870536422,1.9181155,2725.5,2725.4,0.99265368]
[1646870536619,1.9181155,2725.5,2725.4,2.51632203]
[1646870536818,0.9181155,2725.5,2725.4,2.51632203]
[1646870537664,1.2181155,2725.5,2725.4,2.51632203]
[1646870538463,1.21903548,2725.5,2725.4,2.51632203]
[1646870538762,2.8356686,2725.6,2725.4,2.51632203]
[1646870538763,2.42954701,2725.6,2725.4,2.51632203]
[1646870538967,1.42954701,2725.6,2725.5,1.52366835]
[1646870539974,5.45654701,2725.6,2725.5,1.52366835]
[1646870540168,2.28571501,2725.6,2725.5,1.52366835]
[1646870540367,2.5,2725.5,2725.0,0.04493329]
[1646870540568,1.44512,2725.4,2725.3,0.00610816]
[1646870540828,1.474288,2725.4,2725.3,0.00610816]
[1646870541030,1.44512,2725.4,2725.3,0.00610816]
[1646870541821,1.474288,2725.4,2725.3,0.00610816]
[1646870545169,1.44512,2725.4,2725.3,0.00610816]
[1646870545973,0.9178256,2725.5,2725.3,0.91172138]
[1646870546379,1.8355308,2725.9,2725.4,3.5]
[1646870546621,0.527,2726.6,2725.8,0.90815472]
[1646870546975,0.91766,2726.4,2725.8,0.90815472]
[1646870547174,0.91766,2726.4,2725.4,3.35216347]
[1646870547175,0.9175699,2726.3,2725.4,3.35216347]
[1646870547375,0.9175699,2726.3,2725.4,0.01424453]
[1646870547376,0.527,2726.3,2725.4,0.01424453]
[1646870547574,0.029168,2725.7,2725.4,0.01424453]
[1646870547800,0.527,2726.3,2725.4,0.01424453]
[1646870547801,0.527,2725.8,2725.4,0.01424453]
[1646870548073,0.029168,2725.6,2725.4,0.01424453]
[1646870548323,0.029168,2725.6,2725.3,0.00610816]
[1646870548324,0.9471708,2725.6,2725.3,0.00610816]
[1646870548515,1.8651208,2725.6,2725.3,0.00966899]
[1646870548748,0.3,2725.5,2725.3,0.00966899]
[1646870549112,0.3,2725.5,2725.3,0.944239]
[1646870549317,0.3,2725.5,2725.3,0.94067817]
[1646870549616,0.3,2725.5,2725.3,0.00610816]
[1646870549816,0.91797,2725.4,2725.3,0.00952908]
[1646870550419,0.3,2725.5,2725.3,0.00952908]
[1646870550620,0.3,2725.5,2725.3,0.00610816]
[1646870551220,0.3,2725.5,2725.3,0.07097157]
[1646870551524,1.61631076,2725.7,2725.3,0.07097157]
[1646870551721,0.61631076,2725.7,2725.3,0.07097157]
[1646870552162,0.9180028,2725.6,2725.3,0.07439249]
[1646870552972,0.9180028,2725.6,2725.3,0.07097157]
[1646870553364,0.9180028,2725.6,2725.3,0.07423116]
[1646870553365,0.3,2725.5,2725.3,0.07423116]
[1646870554167,1.2179,2725.5,2725.3,0.07097157]
[1646870554573,1.2179,2725.5,2725.3,0.07423113]
[1646870555371,1.2179,2725.5,2725.3,0.07097157]
[1646870555825,1.2179,2725.5,2725.3,0.07423113]
[1646870556613,1.2179,2725.5,2725.3,0.07097157]
[1646870556815,1.2179,2725.5,2725.3,0.07425446]
[1646870557014,1.2179,2725.5,2725.4,0.07312995]
[1646870557220,1.2179,2725.5,2725.3,0.68686464]
[1646870557414,1.2179,2725.5,2725.3,0.00939105]
[1646870557615,1.2179,2725.5,2725.3,0.07112841]
[1646870557819,1.2179,2725.5,2725.3,0.74531911]
[1646870558025,1.2179,2725.5,2725.3,0.748602]
[1646870558215,1.2179,2725.5,2725.4,0.06152523]
[1646870558415,1.2179,2725.5,2725.4,0.73899882]
[1646870558616,1.2179,2725.5,2725.4,0.67747359]
[1646870558617,0.0012,2725.5,2725.4,0.67747359]
[1646870558817,0.0012,2725.5,2725.3,0.68686464]
[1646870559016,0.0012,2725.5,2725.3,0.68358175]
[1646870559265,0.0012,2725.5,2725.3,0.68686467]
[1646870559423,0.0012,2725.5,2725.3,0.00939108]
[1646870559424,0.9191,2725.5,2725.3,0.00939108]
[1646870559682,0.029168,2725.4,2725.3,0.00939108]
[1646870559887,0.029168,2725.4,2725.0,0.67960723]
[1646870560079,0.9180197,2725.3,2725.0,0.01221632]
[1646870560278,0.3,2725.2,2725.0,0.01221632]
[1646870560480,0.3,2725.2,2725.1,1.52374412]
[1646870561289,1.21802,2725.2,2725.1,1.52374412]
[1646870561681,1.247188,2725.2,2725.1,1.52374412]
[1646870562680,1.247188,2725.2,2725.1,1.53596044]
[1646870564914,1.248388,2725.2,2725.1,1.53596044]
[1646870565519,1.248388,2725.2,2725.0,0.02814548]
[1646870565716,0.029168,2725.1,2725.0,0.02814548]
[1646870565919,0.556168,2725.1,2725.0,0.02814548]
[1646870566114,0.556168,2725.1,2724.9,0.00640272]
[1646870566315,0.029168,2725.0,2724.9,0.00640272]
[1646870566517,0.556168,2725.0,2724.9,0.00640272]
[1646870566717,0.527,2725.0,2724.9,0.00640272]
[1646870566918,1.2180902,2725.1,2724.9,0.00640272]
[1646870566919,1.2472582,2725.1,2724.9,0.00640272]
[1646870567964,0.9180902,2725.1,2724.9,0.00640272]
[1646870568963,2.06878782,2725.5,2725.0,2.2]
[1646870569171,2.75409,2725.9,2725.5,0.95825256]
[1646870569368,0.53910203,2726.8,2726.0,1.13398564]
[1646870569670,1.1611,2726.9,2726.1,3.5]
[1646870569869,2.4974,2727.0,2726.0,0.2029]
[1646870570098,0.527,2726.8,2725.7,0.06542617]
[1646870570283,2.8652,2727.0,2725.7,0.00216347]
[1646870570284,3.0,2726.7,2725.7,0.00216347]
[1646870570470,3.0,2726.7,2725.5,0.00216347]
[1646870570471,6.591,2726.4,2725.5,0.00216347]
[1646870570671,6.591,2726.1,2725.2,0.00216347]
[1646870570918,6.591,2726.1,2725.0,0.00216347]
[1646870570919,6.591,2725.5,2725.0,0.00216347]
[1646870571154,6.591,2725.5,2724.7,0.06169408]
[1646870571155,4.027,2725.4,2724.7,0.06169408]
[1646870571323,4.027,2725.4,2724.5,0.02411816]
[1646870571324,0.018919,2725.1,2724.5,0.02411816]
[1646870571518,6.609919,2725.1,2724.7,0.01617536]
[1646870571720,0.527,2725.0,2724.7,0.01617536]
[1646870571917,0.05427597,2724.9,2724.7,0.01617536]
[1646870572116,5.16405,2724.8,2724.7,0.03235072]
[1646870572318,5.16405,2724.8,2724.3,0.02876692]
[1646870572319,0.04968727,2724.6,2724.3,0.02876692]
[1646870572517,0.527,2724.5,2724.3,0.02876692]
[1646870572717,0.827,2724.5,2724.3,0.02876692]
[1646870572922,0.0566707,2724.4,2724.3,0.02876692]
[1646870573119,0.5836707,2724.4,2724.3,0.02876692]
[1646870573316,0.5836707,2724.4,2724.3,0.70867666]
[1646870573317,0.827,2724.4,2724.3,0.70867666]
[1646870573525,1.74552,2724.4,2724.3,0.70867666]
[1646870573721,1.74552,2724.4,2724.3,0.02876692]